Workbook

Sheet DONNEES
A1: Mode de paiement | C1: CODE -TVA | E1: Type | G1: TITRE
A2: Par chèque | C2: 0.19 | E2: Achats MP | G2: Sarl, ISO 9 INTERNATIONAL : SUIVI DES FACTURES FOURNISSEURS : EXERCICE 2022
A3: Virement | C3: 0.09 | E3: Achats Emb | G3: Sarl, ISO 9 INTERNATIONAL : LISTE DES FACTURES FOURNISSEURS : EXERCICE 2022
A4: Verssement | C4: 0 | E4: Autres Achats Stockés
A5: Espèce | E5: Achats non stockés
A6: A Terme | E6: Services
A7: Espèce (TEMP.) | E7: Immobilisations
A8: Compensation | E8: Location
E9: Loyer leasing
E10: Autres

Sheet LISTE FRS
A1: Fournisseurs | B1: N° | C1: Code Compta | D1: Adresse | E1: Contacte
A2: AASTED ABS DANEMARK | B2: =ROW()-1 -> 1 | C2: 404906
A3: ABDESLAM NACERDINE | B3: 2 | C3: 401725
A4: ABINDUSTRIY, VTE MATERIEL | B4: 3 | C4: 404200
A5: ADE - BORDJ-MENAIEL, EPIC | B5: 4 | C5: 401901
A6: ADE - BOUMERDES, EPIC | B6: 5 | C6: 401902
A7: ADMIN INFORMATIQUE, VTES & MTENANCE | B7: 6 | C7: 401698
A8: AGRANA FRUITS ALGERIA, SPA | B8: 7 | C8: 401137
A9: AGRANA FRUITS ALGERIA | B9: 8 | C9: 403137
A10: AGRIPINE, SARL | B10: 9 | C10: 401455
A11: AGRO ALIMENTAIRE SARL | B11: 10 | C11: 401447
A12: AGRO FILM PACKAGING, SARL | B12: 11 | C12: 401103
A13: AGROAL HHK, EURL | B13: 12 | C13: 401435
A14: AGRORAW, SARL | B14: 13 | C14: 401437
A15: AIR ragon INDUSTRY, SPA | B15: 14 | C15: 401612
A16: AKSOUM SLIMANE, GROS AL.GLE | B16: 15 | C16: 401302
A17: ALILECHE MED LARBI, A.PUB. | B17: 16 | C17: 401134
A18: ALL PLAST, SARL | B18: 17 | C18: 401177
A19: ALSOCHEM, SARL | B19: 18 | C19: 401253
A20: ALZYME, SARL | B20: 19 | C20: 401417
A21: AMLI CONSTRUCTION, SARL | B21: 20 | C21: 404173
A22: AMNNA, SARL | B22: 21 | C22: 401426
A23: AMOUCHAS YACINE, | B23: 22 | C23: 401443
A24: AQUASIM, SPA | B24: 23 | C24: 401186
A25: AROMATECH, SARL | B25: 24 | C25: 401140
A26: AROMES D'ALGERIE, EURL | B26: 25 | C26: 401164
A27: AROMGEL ALGERO-ITALIENNE, SARL | B27: 26 | C27: 401225
A28: ATMCHYGIENE, SARL | B28: 27 | C28: 401282
A29: B 2 M B O U C H E K I R, SARL | B29: 28 | C29: 401166
A30: B A L E H O U A N E HAKIM, CHOCOLATIER | B30: 29 | C30: 401193
A31: B A P - L A I T, SARL | B31: 30 | C31: 401202
A32: B A T I C O M P O S, SPA | B32: 31 | C32: 404019
A33: B E I, SARL | B33: 32 | C33: 401667
A34: B E N S E K H R I YACINE, ETS | B34: =ROW()-1 -> 33 | C34: 401747
A35: B E R K A N I MADJID, DBK T.OUZOU | B35: 34 | C35: 401418
A36: B I O - F O O D, M.B.C | B36: 35 | C36: 401183
A37: B O U C H E L A G H E M KAMAL, TIZI OUZOU | B37: 36 | C37: 401640
A38: B O U C I O U F AMAR, EMBALLAGE | B38: 37 | C38: 401180
A39: B O U G H A L A D SAID, PLOMBERIE | B39: 38 | C39: 404206
A40: B O U K E B B AL ABDELKARIM, ETS | B40: 39 | C40: 404196
A41: B O U Z I D I AZIZ, C.EMBALLAGES | B41: 40 | C41: 401176
A42: B U H L E R AG SUISSE | B42: 41 | C42: 404905
A43: C A R G I LL MALAISIE | B43: 42 | C43: 401411
A44: C A R I N S A ALGERIE, EURL | B44: 43 | C44: 401143
A45: C H E F A I N G R E D I E N T S, SARL | B45: 44 | C45: 401288
A46: C H E M I - P R O, SARL | B46: 45 | C46: 401291
A47: C O D A L ALGERIE, SARL | B47: 46 | C47: 401655
A48: C O J H Y, SARL | B48: 47 | C48: 401647
A49: C O N F I C H O C, SARL | B49: 48 | C49: 401181
A50: C U R T G E O R G I M A G H R E B, EURL | B50: 49 | C50: 401197
A51: D A N I M E X, EURL | B51: 50 | C51: 401211
A52: D A R K O M , SARL | B52: 51 | C52: 401675
A53: D A Y M A CHIMIE, SARL | B53: 52 | C53: 401218
A54: D E L T A CONTROL, SARL | B54: 53 | C54: 401611
A55: D I F W A L I D | B55: 54 | C55: 401439
A56: D I S P O K E M, SARL | B56: 55 | C56: 401423
A57: D I S P R O C, SARL | B57: 56 | C57: 401284
A58: D I S T R I F I R S T, EURL | B58: 57 | C58: 401287
A59: D I S T R I M, SPA | B59: 58 | C59: 401109
A60: D O U D A H AISSAM, INSTAL. EQUIPTS FRIGOR. | B60: 59 | C60: 404171
A61: E D E L W E I S S P L A S T SARL | B61: 60 | C61: 401425
A62: E F C E Q U I P E M E N T S, SARL | B62: 61 | C62: 401436
A63: E L B A R A K A F O O D INVESTMENT | B63: 62 | C63: 401441
A64: E N A S E L, SPA | B64: 63 | C64: 401113
A65: E P I B E N I E, SARL | B65: 64 | C65: 401456
A66: E T I Q A L, SARL | B66: =ROW()-1 -> 65 | C66: 401110
A67: E T I Q U E T T E D ' O R, E.U.R.L | B67: 66 | C67: 401429
A68: EXPRESSIONS AROMATIQUES, EURL | B68: 67 | C68: 401102
A69: F A C T ALGERIE, SARL | B69: 68 | C69: 404207
A70: F B - F O O D, SARL | B70: 69 | C70: 401296
A71: F L Y C H E M I C A L S, EURL | B71: 70 | C71: 401269
A72: F O U R N I S S E U R S N/SOUMIS A TVA | B72: 71 | C72: 401500
A73: G R D LA BELLE, SPA | B73: 72 | C73: 401124
A74: G R O S BERRAHAL GROUP, SPA | B74: 73 | C74: 401344
A75: H A D J K A S S E M A.MADJID, BEL EMB. | B75: 74 | C75: 401116
A76: H A M T E C H , SARL | B76: 75 | C76: 401214
A77: H A N I P A P, SARL | B77: 76 | C77: 401416
A78: H O C I N E MOHAMED, B.E.T.A | B78: 77 | C78: 404139
A79: I M A F O R N I G E A, ITALIE | B79: 78 | C79: 404900
A80: I N D E F R I G O, SARL | B80: 79 | C80: 404178
A81: I N N O V E X SUCCURSALE, SARL | B81: 80 | C81: 401230
A82: I N V E S T I N O X, EURL | B82: 81 | C82: 401627
A83: I P A C, SARL | B83: 82 | C83: 401440
A84: I.T.E A.ISSAKHEM | B84: 83 | C84: 404907
A85: J A B C O M P A N Y, SARL | B85: 84 | C85: 401236
A86: K A R I M IMPRIM. MODERNE, EURL | B86: 85 | C86: 401139
A87: K A R M A C, SARL | B87: 86 | C87: 401693
A88: K E R M O U D ACHOUR, ETS | B88: 87 | C88: 401696
A89: K H A D E R IMPORT/EXPORT, EURL | B89: 88 | C89: 401265
A90: K H I R E D D I N E MOHAMED | B90: 89 | C90: 404197
A91: K R E A C H I M, EURL | B91: 90 | C91: 401454
A92: KFH FRANCE | B92: 91 | C92: 401011
A93: L A CASTELLANA SAS, ITALIE | B93: 92 | C93: 404904
A94: L A M A I S O N DU T E L E P H O N E, SARL | B94: 93 | C94: 404210
A95: L A B O F E E, SARL | B95: 94 | C95: 401196
A96: L A I T E R I E LE S E M E U R, SARL | B96: 95 | C96: 401428
A97: LA PLATFORME DE L'INDUSTERIE SARL | B97: 96 | C97: 401434
A98: M A G H R E B EMBALLAGE, SPA | B98: =ROW()-1 -> 97 | C98: 401172
A99: M A X I STORE AGRO TRADING, EURL | B99: 98 | C99: 401274
A100: M A X I M INDUSTRIAL SERVICES, SARL | B100: 99 | C100: 404203
A101: M E D I U S EMBALLAGE, SPA AIN BENIAN | B101: 100 | C101: 401112
A102: M E Z H O U D I Y O U C E F | B102: 101 | C102: 401432
A103: M E Z I N E BOUDJEMA, ETS | B103: 102 | C103: 401702
A104: M I C A L, SARL | B104: 103 | C104: 401695
A105: M I C A L, SARL | B105: 104 | C105: 404195
A106: M I L O U D I - MOURAD M.DINE, ENTREPRISE | B106: 105 | C106: 404177
A107: M I T I M A EMBALLAGE, SARL | B107: 106 | C107: 401141
A108: M O U L I N S A Y A H A L I ORAN | B108: 107 | C108: 401430
A109: M O U L I N S DE LA CHORFA, SPA | B109: 108 | C109: 401415
A110: M O U Z A I A PLASTIQUE, SARL | B110: 109 | C110: 401174
A111: MAGHREB EMBALLAGE | B111: 110 | C111: 403172
A112: MEDIUS EMBALLAGE SPA | B112: 111 | C112: 403112
A113: N A C H C O FOOD | B113: 112 | C113: 401433
A114: N A D A T E K SARL | B114: 113 | C114: 401448
A115: N A D A T E K, SARL | B115: 114 | C115: 401638
A116: N E O F A R, SARL | B116: 115 | C116: 401132
A117: N E V I A L IMPORT EXPORT, SARL | B117: 116 | C117: 401257
A118: N L K I M Y A, SARL | B118: 117 | C118: 401438
A119: N U M I D E X, SARL | B119: 118 | C119: 404201
A120: N U M I D I S, IMPRIMERIE | B120: 119 | C120: 401697
A121: O M N I C H E M, SARL | B121: 120 | C121: 401221
A122: O P R E D IMP./EXP., SARL | B122: 121 | C122: 401751
A123: O P T I M A R O M E, EURL | B123: 122 | C123: 401248
A124: O R K I L A ALGERIE, SPA | B124: 123 | C124: 401205
A125: O V O - M E D I T E R R A N E E, EURL | B125: 124 | C125: 401151
A126: O V O - G I D K Y, SARL | B126: 125 | C126: 401147
A127: O V O C U P, EURL | B127: 126 | C127: 401442
A128: OUEST IMPORT, BERRAHAL GPE, SPA | B128: 127 | C128: 401343
A129: P A C K I N T S.R.L - ITALIE | B129: 128 | C129: 401403
A130: P H O B O S, EURL | B130: =ROW()-1 -> 129 | C130: 401227
A131: P L A N E T E MESURE, EQUIPEMENTS | B131: 130 | C131: 404182
A132: P R A T I C EMBALLAGE, SARL | B132: 131 | C132: 401142
A133: P R I N T P L U S O N E, SARL | B133: 132 | C133: 401108
A134: P R O C U B E, SARL | B134: 133 | C134: 401422
A135: P R O D E L A C, SARL | B135: 134 | C135: 401285
A136: P R O F I N T E C, EURL | B136: 135 | C136: 404115
A137: P R O LYSA EURL | B137: 136 | C137: 401427
A138: P Y A T L A S, SARL | B138: 137 | C138: 404167
A139: R A C H I LAKHDAR | B139: 138 | C139: 401107
A140: R A C H I LAKHDAR, ELECTRO-MENAGER | B140: 139 | C140: 401726
A141: R A D I M E D GROS,EURL | B141: 140 | C141: 401251
A142: R A Y A N HYGIENE SCES, SARL | B142: 141 | C142: 401226
A143: R E D S E A INVESTMENT, SARL | B143: 142 | C143: 401246
A144: R I C A R D O MOLINA ALGERIE, SARL | B144: 143 | C144: 401292
A145: S A B R I AGRO INDUSTRIES, SARL | B145: 144 | C145: 401165
A146: S A D E G - D D BOUMERDES, SPA | B146: 145 | C146: 401900
A147: S C H N E I D E R ELECTRIC, SARL | B147: 146 | C147: 404141
A148: S C I E N T I L A B O, SARL | B148: 147 | C148: 401237
A149: S I P C A, SARL | B149: 148 | C149: 401213
A150: S I R I M P R I M E R I E, SARL | B150: 149 | C150: 401133
A151: S I T T E L L E INDUSTRIELS, SARL | B151: 150 | C151: 401421
A152: S O D I C H N, SARL | B152: 151 | C152: 401349
A153: S O G I C L I M, SARL | B153: 152 | C153: 404198
A154: S T R M, EURL | B154: 153 | C154: 401244
A155: T A B A R O U T ABDENOUR | B155: 154 | C155: 401711
A156: T A G U E M O U T NACIRA, ETS | B156: 155 | C156: 401713
A157: T E C H N I FROID, SNC | B157: 156 | C157: 404193
A158: T E C H N I M A T I C, SARL | B158: 157 | C158: 401231
A159: T E C N O P A C K ITALIE | B159: 158 | C159: 404903
A160: T H E R M O P L A S T, SARL | B160: 159 | C160: 401130
A161: T R A N S P A P, | B161: 160 | C161: 401444
A162: V E R A F L E X, EURL | B162: 161 | C162: 401752
A163: Z E B B O U D J AMINE, ETP | B163: 162 | C163: 404209
A164: Z O U R D A N I SALIM | B164: 163 | C164: 401686
A165: Z W I N E D I S T R A, EURL | B165: 164 | C165: 401350

Sheet RECAP 01-2022
A1: =DONNEES!G3 -> Sarl, ISO 9 INTERNATIONAL : LISTE DES FACTURES FOURNISSEURS : EXERCICE 2022
A2: N°. | B2: Fournisseurs | C2: N° Facture | D2: Type | E2: Date Facture | F2: Mode de Règlement | G2: Total HT | H2: Montant TVA | I2: Timbre | J2: Autres | K2: Montant TTC
A3: =Tableau4[[#This Row],[N°.]] -> 1 | B3: =Tableau4[[#This Row],[Fournisseurs]] -> G R O S BERRAHAL GROUP, SPA | C3: =Tableau4[[#This Row],[N° Facture]] -> F 553 | D3: =Tableau4[[#This Row],[Type]] -> Services | E3: =Tableau4[[#This Row],[Date Facture]] -> 2022-01-30 | F3: =Tableau4[[#This Row],[Mode de Règlement]] -> Par chèque | G3: =Tableau4[[#This Row],[Total HT]] -> 18753 | H3: =Tableau4[[#This Row],[Montant TVA]] -> 3563.07 | I3: =Tableau4[[#This Row],[Timbre]] -> 0 | J3: =Tableau4[[#This Row],[Autres]] -> 0 | K3: =Tableau4[[#This Row],[Montant TTC]] -> 22316.07
A4: =Tableau4[[#This Row],[N°.]] -> 2 | B4: =Tableau4[[#This Row],[Fournisseurs]] -> P A C K I N T S.R.L - ITALIE | C4: =Tableau4[[#This Row],[N° Facture]] -> F 543 | D4: =Tableau4[[#This Row],[Type]] -> Achats MP | E4: =Tableau4[[#This Row],[Date Facture]] -> 2022-01-31 | F4: =Tableau4[[#This Row],[Mode de Règlement]] -> Espèce | G4: =Tableau4[[#This Row],[Total HT]] -> 122868 | H4: =Tableau4[[#This Row],[Montant TVA]] -> 23344.93 | I4: =Tableau4[[#This Row],[Timbre]] -> 1461.9993 | J4: =Tableau4[[#This Row],[Autres]] -> 200 | K4: =Tableau4[[#This Row],[Montant TTC]] -> 147874.9293
A5: =Tableau4[[#This Row],[N°.]] -> 3 | B5: =Tableau4[[#This Row],[Fournisseurs]] -> G R O S BERRAHAL GROUP, SPA | C5: =Tableau4[[#This Row],[N° Facture]] -> F 545 | D5: =Tableau4[[#This Row],[Type]] -> Autres Achats Stockés | E5: =Tableau4[[#This Row],[Date Facture]] -> 2022-02-28 | F5: =Tableau4[[#This Row],[Mode de Règlement]] -> Espèce | G5: =Tableau4[[#This Row],[Total HT]] -> 564332 | H5: =Tableau4[[#This Row],[Montant TVA]] -> 107223.08 | I5: =Tableau4[[#This Row],[Timbre]] -> 2500 | J5: =Tableau4[[#This Row],[Autres]] -> 0 | K5: =Tableau4[[#This Row],[Montant TTC]] -> 674055.08
A6: =Tableau4[[#This Row],[N°.]] -> 4 | B6: =Tableau4[[#This Row],[Fournisseurs]] -> AASTED ABS DANEMARK | C6: =Tableau4[[#This Row],[N° Facture]] -> F 549 | D6: =Tableau4[[#This Row],[Type]] -> Achats non stockés | E6: =Tableau4[[#This Row],[Date Facture]] -> 2022-03-31 | F6: =Tableau4[[#This Row],[Mode de Règlement]] -> Espèce | G6: =Tableau4[[#This Row],[Total HT]] -> 50000000 | H6: =Tableau4[[#This Row],[Montant TVA]] -> 9500000 | I6: =Tableau4[[#This Row],[Timbre]] -> 2500 | J6: =Tableau4[[#This Row],[Autres]] -> 0 | K6: =Tableau4[[#This Row],[Montant TTC]] -> 59502500
A7: =Tableau4[[#This Row],[N°.]] -> 5 | B7: =Tableau4[[#This Row],[Fournisseurs]] -> M A G H R E B EMBALLAGE, SPA | C7: =Tableau4[[#This Row],[N° Facture]] -> F 550 | D7: =Tableau4[[#This Row],[Type]] -> Achats MP | E7: =Tableau4[[#This Row],[Date Facture]] -> 2022-04-30 | F7: =Tableau4[[#This Row],[Mode de Règlement]] -> Verssement | G7: =Tableau4[[#This Row],[Total HT]] -> 12762 | H7: =Tableau4[[#This Row],[Montant TVA]] -> 2424.78 | I7: =Tableau4[[#This Row],[Timbre]] -> 0 | J7: =Tableau4[[#This Row],[Autres]] -> 0 | K7: =Tableau4[[#This Row],[Montant TTC]] -> 15186.78
A8: =Tableau4[[#This Row],[N°.]] -> 6 | B8: =Tableau4[[#This Row],[Fournisseurs]] -> AASTED ABS DANEMARK | C8: =Tableau4[[#This Row],[N° Facture]] -> F 547 | D8: =Tableau4[[#This Row],[Type]] -> Immobilisations | E8: =Tableau4[[#This Row],[Date Facture]] -> 2022-05-15 | F8: =Tableau4[[#This Row],[Mode de Règlement]] -> Espèce | G8: =Tableau4[[#This Row],[Total HT]] -> 15628 | H8: =Tableau4[[#This Row],[Montant TVA]] -> 2969.32 | I8: =Tableau4[[#This Row],[Timbre]] -> 185.9732 | J8: =Tableau4[[#This Row],[Autres]] -> 0 | K8: =Tableau4[[#This Row],[Montant TTC]] -> 18783.2932
A9: =Tableau4[[#This Row],[N°.]] -> 7 | B9: =Tableau4[[#This Row],[Fournisseurs]] -> E N A S E L, SPA | C9: =Tableau4[[#This Row],[N° Facture]] -> F 553 | D9: =Tableau4[[#This Row],[Type]] -> Loyer leasing | E9: =Tableau4[[#This Row],[Date Facture]] -> 2022-07-30 | F9: =Tableau4[[#This Row],[Mode de Règlement]] -> A Terme | G9: =Tableau4[[#This Row],[Total HT]] -> 543287 | H9: =Tableau4[[#This Row],[Montant TVA]] -> 103224.53 | I9: =Tableau4[[#This Row],[Timbre]] -> 0 | J9: =Tableau4[[#This Row],[Autres]] -> 0 | K9: =Tableau4[[#This Row],[Montant TTC]] -> 646511.53
A10: =Tableau4[[#This Row],[N°.]] -> 8 | B10: =Tableau4[[#This Row],[Fournisseurs]] -> K E R M O U D ACHOUR, ETS | C10: =Tableau4[[#This Row],[N° Facture]] -> F 546 | D10: =Tableau4[[#This Row],[Type]] -> Services | E10: =Tableau4[[#This Row],[Date Facture]] -> 2022-08-05 | F10: =Tableau4[[#This Row],[Mode de Règlement]] -> Espèce | G10: =Tableau4[[#This Row],[Total HT]] -> 10000000 | H10: =Tableau4[[#This Row],[Montant TVA]] -> 1900000 | I10: =Tableau4[[#This Row],[Timbre]] -> 2500 | J10: =Tableau4[[#This Row],[Autres]] -> 0 | K10: =Tableau4[[#This Row],[Montant TTC]] -> 11902500
A11: =Tableau4[[#This Row],[N°.]] -> 9 | B11: =Tableau4[[#This Row],[Fournisseurs]] -> F O U R N I S S E U R S N/SOUMIS A TVA | C11: =Tableau4[[#This Row],[N° Facture]] -> F 551 | D11: =Tableau4[[#This Row],[Type]] -> Services | E11: =Tableau4[[#This Row],[Date Facture]] -> 2022-09-05 | F11: =Tableau4[[#This Row],[Mode de Règlement]] -> Par chèque | G11: =Tableau4[[#This Row],[Total HT]] -> 6765921 | H11: =Tableau4[[#This Row],[Montant TVA]] -> 1285524.99 | I11: =Tableau4[[#This Row],[Timbre]] -> 0 | J11: =Tableau4[[#This Row],[Autres]] -> 0 | K11: =Tableau4[[#This Row],[Montant TTC]] -> 8051445.99
A12: =Tableau4[[#This Row],[N°.]] -> 10 | B12: =Tableau4[[#This Row],[Fournisseurs]] -> K A R I M IMPRIM. MODERNE, EURL | C12: =Tableau4[[#This Row],[N° Facture]] -> F 548 | D12: =Tableau4[[#This Row],[Type]] -> Loyer leasing | E12: =Tableau4[[#This Row],[Date Facture]] -> 2022-09-25 | F12: =Tableau4[[#This Row],[Mode de Règlement]] -> Virement | G12: =Tableau4[[#This Row],[Total HT]] -> 188822 | H12: =Tableau4[[#This Row],[Montant TVA]] -> 35876.18 | I12: =Tableau4[[#This Row],[Timbre]] -> 0 | J12: =Tableau4[[#This Row],[Autres]] -> 0 | K12: =Tableau4[[#This Row],[Montant TTC]] -> 224698.18
A13: =Tableau4[[#This Row],[N°.]] -> 11 | B13: =Tableau4[[#This Row],[Fournisseurs]] -> D I S T R I F I R S T, EURL | C13: =Tableau4[[#This Row],[N° Facture]] -> F 552 | D13: =Tableau4[[#This Row],[Type]] -> Immobilisations | E13: =Tableau4[[#This Row],[Date Facture]] -> 2022-10-29 | F13: =Tableau4[[#This Row],[Mode de Règlement]] -> Espèce (TEMP.) | G13: =Tableau4[[#This Row],[Total HT]] -> 1 | H13: =Tableau4[[#This Row],[Montant TVA]] -> 0.19 | I13: =Tableau4[[#This Row],[Timbre]] -> 0 | J13: =Tableau4[[#This Row],[Autres]] -> 0 | K13: =Tableau4[[#This Row],[Montant TTC]] -> 1.19
A14: =Tableau4[[#This Row],[N°.]] -> 12 | B14: =Tableau4[[#This Row],[Fournisseurs]] -> 0 | C14: =Tableau4[[#This Row],[N° Facture]] -> 0 | D14: =Tableau4[[#This Row],[Type]] -> 0 | E14: =Tableau4[[#This Row],[Date Facture]] -> 00:00:00 | F14: =Tableau4[[#This Row],[Mode de Règlement]] -> Par chèque | G14: =Tableau4[[#This Row],[Total HT]] -> -42 | H14: =Tableau4[[#This Row],[Montant TVA]] -> 0 | I14: =Tableau4[[#This Row],[Timbre]] -> 0 | J14: =Tableau4[[#This Row],[Autres]] -> 0 | K14: =Tableau4[[#This Row],[Montant TTC]] -> -42
A15: =Tableau4[[#This Row],[N°.]] -> 13 | B15: =Tableau4[[#This Row],[Fournisseurs]] -> 0 | C15: =Tableau4[[#This Row],[N° Facture]] -> 0 | D15: =Tableau4[[#This Row],[Type]] -> 0 | E15: =Tableau4[[#This Row],[Date Facture]] -> 00:00:00 | F15: =Tableau4[[#This Row],[Mode de Règlement]] -> 0 | G15: =Tableau4[[#This Row],[Total HT]] -> 0 | H15: =Tableau4[[#This Row],[Montant TVA]] -> 0 | I15: =Tableau4[[#This Row],[Timbre]] -> 0 | J15: =Tableau4[[#This Row],[Autres]] -> 0 | K15: =Tableau4[[#This Row],[Montant TTC]] -> 0
A16: =Tableau4[[#This Row],[N°.]] -> 14 | B16: =Tableau4[[#This Row],[Fournisseurs]] -> 0 | C16: =Tableau4[[#This Row],[N° Facture]] -> 0 | D16: =Tableau4[[#This Row],[Type]] -> 0 | E16: =Tableau4[[#This Row],[Date Facture]] -> 00:00:00 | F16: =Tableau4[[#This Row],[Mode de Règlement]] -> 0 | G16: =Tableau4[[#This Row],[Total HT]] -> 0 | H16: =Tableau4[[#This Row],[Montant TVA]] -> 0 | I16: =Tableau4[[#This Row],[Timbre]] -> 0 | J16: =Tableau4[[#This Row],[Autres]] -> 0 | K16: =Tableau4[[#This Row],[Montant TTC]] -> 0
A17: =Tableau4[[#This Row],[N°.]] -> 15 | B17: =Tableau4[[#This Row],[Fournisseurs]] -> 0 | C17: =Tableau4[[#This Row],[N° Facture]] -> 0 | D17: =Tableau4[[#This Row],[Type]] -> 0 | E17: =Tableau4[[#This Row],[Date Facture]] -> 00:00:00 | F17: =Tableau4[[#This Row],[Mode de Règlement]] -> 0 | G17: =Tableau4[[#This Row],[Total HT]] -> 0 | H17: =Tableau4[[#This Row],[Montant TVA]] -> 0 | I17: =Tableau4[[#This Row],[Timbre]] -> 0 | J17: =Tableau4[[#This Row],[Autres]] -> 0 | K17: =Tableau4[[#This Row],[Montant TTC]] -> 0
A18: =Tableau4[[#This Row],[N°.]] -> 16 | B18: =Tableau4[[#This Row],[Fournisseurs]] -> 0 | C18: =Tableau4[[#This Row],[N° Facture]] -> 0 | D18: =Tableau4[[#This Row],[Type]] -> 0 | E18: =Tableau4[[#This Row],[Date Facture]] -> 00:00:00 | F18: =Tableau4[[#This Row],[Mode de Règlement]] -> 0 | G18: =Tableau4[[#This Row],[Total HT]] -> 0 | H18: =Tableau4[[#This Row],[Montant TVA]] -> 0 | I18: =Tableau4[[#This Row],[Timbre]] -> 0 | J18: =Tableau4[[#This Row],[Autres]] -> 0 | K18: =Tableau4[[#This Row],[Montant TTC]] -> 0
A19: =Tableau4[[#This Row],[N°.]] -> 17 | B19: =Tableau4[[#This Row],[Fournisseurs]] -> 0 | C19: =Tableau4[[#This Row],[N° Facture]] -> 0 | D19: =Tableau4[[#This Row],[Type]] -> 0 | E19: =Tableau4[[#This Row],[Date Facture]] -> 00:00:00 | F19: =Tableau4[[#This Row],[Mode de Règlement]] -> 0 | G19: =Tableau4[[#This Row],[Total HT]] -> 0 | H19: =Tableau4[[#This Row],[Montant TVA]] -> 0 | I19: =Tableau4[[#This Row],[Timbre]] -> 0 | J19: =Tableau4[[#This Row],[Autres]] -> 0 | K19: =Tableau4[[#This Row],[Montant TTC]] -> 0
A20: =Tableau4[[#This Row],[N°.]] -> 18 | B20: =Tableau4[[#This Row],[Fournisseurs]] -> 0 | C20: =Tableau4[[#This Row],[N° Facture]] -> 0 | D20: =Tableau4[[#This Row],[Type]] -> 0 | E20: =Tableau4[[#This Row],[Date Facture]] -> 00:00:00 | F20: =Tableau4[[#This Row],[Mode de Règlement]] -> 0 | G20: =Tableau4[[#This Row],[Total HT]] -> 0 | H20: =Tableau4[[#This Row],[Montant TVA]] -> 0 | I20: =Tableau4[[#This Row],[Timbre]] -> 0 | J20: =Tableau4[[#This Row],[Autres]] -> 0 | K20: =Tableau4[[#This Row],[Montant TTC]] -> 0
A21: =Tableau4[[#This Row],[N°.]] -> 19 | B21: =Tableau4[[#This Row],[Fournisseurs]] -> 0 | C21: =Tableau4[[#This Row],[N° Facture]] -> 0 | D21: =Tableau4[[#This Row],[Type]] -> 0 | E21: =Tableau4[[#This Row],[Date Facture]] -> 00:00:00 | F21: =Tableau4[[#This Row],[Mode de Règlement]] -> 0 | G21: =Tableau4[[#This Row],[Total HT]] -> 0 | H21: =Tableau4[[#This Row],[Montant TVA]] -> 0 | I21: =Tableau4[[#This Row],[Timbre]] -> 0 | J21: =Tableau4[[#This Row],[Autres]] -> 0 | K21: =Tableau4[[#This Row],[Montant TTC]] -> 0
B22: Total | G22: =SUBTOTAL(109,Tableau5[Total HT]) -> 68232332 | H22: ='JOURNAL 01-2022'!M22 -> 12964151.07 | I22: ='JOURNAL 01-2022'!O22 -> 9147.9725 | J22: ='JOURNAL 01-2022'!P22 -> 200 | K22: ='JOURNAL 01-2022'!Q22 -> 81205831.04

Sheet JOURNAL 01-2022
A1: =+DONNEES!G2 -> Sarl, ISO 9 INTERNATIONAL : SUIVI DES FACTURES FOURNISSEURS : EXERCICE 2022
A2: N°. | B2: Code Compta | C2: Fournisseurs | D2: N° Facture | E2: Type | F2: Date Facture | G2: Mode de Règlement | H2: Montant HT | I2: Remise | J2: Total HT | K2: Code TVA | L2: Régul TVA | M2: Montant TVA | N2: Régul Tmbr. | O2: Timbre | P2: Autres | Q2: Montant TTC | R2: Échéance Facture | S2: Date de Paiement
A3: =ROW()-2 -> 1 | B3: =IFERROR(VLOOKUP(C3,Tableau1[],3,FALSE),"") -> 401344 | C3: G R O S BERRAHAL GROUP, SPA | D3: F 553 | E3: Services | F3: 2022-01-30 | G3: Par chèque | H3: 18753 | J3: =H3-I3 -> 18753 | K3: 0.19 | M3: =L3+ROUND(J3*K3,2) -> 3563.07 | O3: =IF(G3="Espèce",MIN((J3+M3)*0.01+N3,2500),0) -> 0 | Q3: =P3+O3+M3+J3 -> 22316.07
A4: 2 | B4: =IFERROR(VLOOKUP(C4,Tableau1[],3,FALSE),"") -> 401403 | C4: P A C K I N T S.R.L - ITALIE | D4: F 543 | E4: Achats MP | F4: 2022-01-31 | G4: Espèce | H4: 123543 | I4: 675 | J4: 122868 | K4: 0.19 | L4: 0.01 | M4: 23344.93 | N4: -0.13 | O4: 1461.9993 | P4: 200 | Q4: 147874.9293
A5: 3 | B5: =IFERROR(VLOOKUP(C5,Tableau1[],3,FALSE),"") -> 401344 | C5: G R O S BERRAHAL GROUP, SPA | D5: F 545 | E5: Autres Achats Stockés | F5: 2022-02-28 | G5: Espèce | H5: 564332 | J5: 564332 | K5: 0.19 | M5: 107223.08 | O5: 2500 | Q5: 674055.08
A6: 4 | B6: =IFERROR(VLOOKUP(C6,Tableau1[],3,FALSE),"") -> 404906 | C6: AASTED ABS DANEMARK | D6: F 549 | E6: Achats non stockés | F6: 2022-03-31 | G6: Espèce | H6: 50000000 | J6: 50000000 | K6: 0.19 | M6: 9500000 | O6: 2500 | Q6: 59502500
A7: 5 | B7: =IFERROR(VLOOKUP(C7,Tableau1[],3,FALSE),"") -> 401172 | C7: M A G H R E B EMBALLAGE, SPA | D7: F 550 | E7: Achats MP | F7: 2022-04-30 | G7: Verssement | H7: 12762 | J7: 12762 | K7: 0.19 | M7: 2424.78 | O7: 0 | Q7: 15186.78
A8: 6 | B8: =IFERROR(VLOOKUP(C8,Tableau1[],3,FALSE),"") -> 404906 | C8: AASTED ABS DANEMARK | D8: F 547 | E8: Immobilisations | F8: 2022-05-15 | G8: Espèce | H8: 15628 | J8: 15628 | K8: 0.19 | M8: 2969.32 | O8: 185.9732 | Q8: 18783.2932
A9: 7 | B9: =IFERROR(VLOOKUP(C9,Tableau1[],3,FALSE),"") -> 401113 | C9: E N A S E L, SPA | D9: F 553 | E9: Loyer leasing | F9: 2022-07-30 | G9: A Terme | H9: 543287 | J9: 543287 | K9: 0.19 | M9: 103224.53 | O9: 0 | Q9: 646511.53
A10: 8 | B10: =IFERROR(VLOOKUP(C10,Tableau1[],3,FALSE),"") -> 401696 | C10: K E R M O U D ACHOUR, ETS | D10: F 546 | E10: Services | F10: 2022-08-05 | G10: Espèce | H10: 10000000 | J10: 10000000 | K10: 0.19 | M10: 1900000 | O10: 2500 | Q10: 11902500
A11: 9 | B11: =IFERROR(VLOOKUP(C11,Tableau1[],3,FALSE),"") -> 401500 | C11: F O U R N I S S E U R S N/SOUMIS A TVA | D11: F 551 | E11: Services | F11: 2022-09-05 | G11: Par chèque | H11: 6765921 | J11: 6765921 | K11: 0.19 | M11: 1285524.99 | O11: 0 | Q11: 8051445.99
A12: 10 | B12: =IFERROR(VLOOKUP(C12,Tableau1[],3,FALSE),"") -> 401139 | C12: K A R I M IMPRIM. MODERNE, EURL | D12: F 548 | E12: Loyer leasing | F12: 2022-09-25 | G12: Virement | H12: 188822 | J12: 188822 | K12: 0.19 | M12: 35876.18 | O12: 0 | Q12: 224698.18
A13: 11 | B13: =IFERROR(VLOOKUP(C13,Tableau1[],3,FALSE),"") -> 401287 | C13: D I S T R I F I R S T, EURL | D13: F 552 | E13: Immobilisations | F13: 2022-10-29 | G13: Espèce (TEMP.) | H13: 1 | J13: 1 | K13: 0.19 | M13: 0.19 | O13: 0 | Q13: 1.19
A14: 12 | B14: =IFERROR(VLOOKUP(C14,Tableau1[],3,FALSE),"") ->  | G14: Par chèque | H14: 2 | I14: 44 | J14: -42 | M14: 0 | O14: 0 | Q14: -42
A15: 13 | B15: =IFERROR(VLOOKUP(C15,Tableau1[],3,FALSE),"") ->  | J15: 0 | M15: 0 | O15: 0 | Q15: 0
A16: 14 | B16: =IFERROR(VLOOKUP(C16,Tableau1[],3,FALSE),"") ->  | J16: 0 | M16: 0 | O16: 0 | Q16: 0
A17: 15 | B17: =IFERROR(VLOOKUP(C17,Tableau1[],3,FALSE),"") ->  | J17: 0 | M17: 0 | O17: 0 | Q17: 0
A18: 16 | B18: =IFERROR(VLOOKUP(C18,Tableau1[],3,FALSE),"") ->  | J18: 0 | M18: 0 | O18: 0 | Q18: 0
A19: 17 | B19: =IFERROR(VLOOKUP(C19,Tableau1[],3,FALSE),"") ->  | J19: 0 | M19: 0 | O19: 0 | Q19: 0
A20: =ROW()-2 -> 18 | B20: =IFERROR(VLOOKUP(C20,Tableau1[],3,FALSE),"") ->  | J20: =H20-I20 -> 0 | M20: =L20+ROUND(J20*K20,2) -> 0 | O20: =IF(G20="Espèce",MIN((J20+M20)*0.01+N20,2500),0) -> 0 | Q20: =P20+O20+M20+J20 -> 0
A21: =ROW()-2 -> 19 | B21: =IFERROR(VLOOKUP(C21,Tableau1[],3,FALSE),"") ->  | J21: =H21-I21 -> 0 | M21: =L21+ROUND(J21*K21,2) -> 0 | O21: =IF(G21="Espèce",MIN((J21+M21)*0.01+N21,2500),0) -> 0 | Q21: =P21+O21+M21+J21 -> 0
C22: Total | H22: =SUBTOTAL(109,Tableau4[Montant HT]) -> 68233051 | I22: =SUBTOTAL(109,Tableau4[Remise]) -> 719 | J22: =SUBTOTAL(109,Tableau4[Total HT]) -> 68232332 | L22: =SUBTOTAL(109,Tableau4[Régul TVA]) -> 0.01 | M22: =SUBTOTAL(109,Tableau4[Montant TVA]) -> 12964151.07 | N22: =SUBTOTAL(109,Tableau4[Régul Tmbr.]) -> -0.13 | O22: =SUBTOTAL(109,Tableau4[Timbre]) -> 9147.9725 | P22: =SUBTOTAL(109,Tableau4[Autres]) -> 200 | Q22: =SUBTOTAL(109,Tableau4[Montant TTC]) -> 81205831.04

Sheet MOTS DE PASSE
B4: MOT DE PASSE | C4: 18163515
C7: Application.ExecuteExcel4Macro "SHOW.TOOLBAR(""Ribbon"",False)
